fUSD/lending_fUSD_20240616
["ID","MTS","AMOUNT","RATE_DAILY","PERIOD"]
[329617481,1718511046113,-1063.28,0.00021917,2]
[329617482,1718511046137,-606.9,0.00021917,2]
[329617483,1718511046154,-1637.79,0.00021917,2]
[329617484,1718511046165,-500.0,0.00021917,2]
[329617485,1718511046178,-504.99932577,0.00021917,2]
[329617486,1718511046221,-521.64,0.00021917,2]
[329617487,1718511046235,-1433.56,0.00021917,2]
[329617488,1718511046247,-500.0,0.00021917,2]
[329617489,1718511046257,-533.77984536,0.00021917,2]
[329617491,1718511046267,-500.0,0.00021917,2]
[329617492,1718511046278,-539.71,0.00021917,2]
[329617493,1718511046290,-500.0,0.00021917,2]
[329617494,1718511046318,-687.69,0.00021917,2]
[329617495,1718511046332,-500.0,0.00021917,2]
[329617496,1718511046350,-710.92,0.00021917,2]
[329617497,1718511046361,-2325.76,0.00021917,2]
[329617498,1718511046371,-500.0,0.00021917,2]
[329617499,1718511046387,-691.46,0.00021917,2]
[329617500,1718511046429,-500.0,0.00021917,2]
[329617501,1718511046446,-1509.4,0.00021917,2]
[329617502,1718511046457,-500.0,0.00021917,2]
[329617503,1718511046476,-557.0,0.00021917,2]
[329617504,1718511046487,-918.07,0.00021917,2]
[329617505,1718511046512,-522.2772513,0.00021917,2]
[329617506,1718511046525,-500.0,0.00021917,2]
[329617507,1718511046560,-500.0,0.00021917,2]
[329617508,1718511046572,-830.66,0.00021917,2]
[329617509,1718511046585,-500.0,0.00021917,2]
[329617510,1718511046625,-712.92,0.00021917,2]
[329617511,1718511046635,-500.0,0.00021917,2]
[329617512,1718511046646,-673.91,0.00021917,2]
[329617513,1718511046659,-2185.83,0.00021917,2]
[329617514,1718511046672,-500.0,0.00021917,2]
[329617515,1718511046684,-1285.48,0.00021917,2]
[329617516,1718511046812,-500.0,0.00021917,2]
[329617517,1718511046834,-529.08203544,0.00021917,2]
[329617518,1718511046850,-500.0,0.00021917,2]
[329617519,1718511046868,-733.58,0.00021917,2]
[329617520,1718511046880,-500.0,0.00021917,2]
[329617521,1718511046891,-1752.28,0.00021917,2]
[329617522,1718511046916,-500.0,0.00021917,2]
[329617523,1718511046940,-500.0,0.00021917,2]
[329617524,1718511046953,-585.81656966,0.00021917,2]
[329617525,1718511046990,-520.59835703,0.00021917,2]
[329617526,1718511047004,-500.0,0.00021917,2]
[329617527,1718511047029,-500.0,0.00021917,2]
[329617528,1718511047039,-1980.11,0.00021917,2]
[329617529,1718511047070,-282.90979783,0.00021917,2]
[329617530,1718511047104,-544.48842405,0.00021917,2]
[329617531,1718511047165,-670.43,0.00021917,2]
[329617532,1718511047181,-500.0,0.00021917,2]
[329617533,1718511047204,-10234.77,0.00021917,2]
[329617534,1718511047216,-500.0,0.00021917,2]
[329617535,1718511047227,-500.0,0.00021917,2]
[329617536,1718511047241,-24461.83,0.00021917,2]
[329617537,1718511047252,-500.0,0.00021917,2]
[329617538,1718511047273,-2960.86,0.00021917,2]
[329617539,1718511047292,-500.0,0.00021917,2]
[329617540,1718511047303,-500.0,0.00021917,2]
[329617541,1718511047379,-872.36,0.00021917,2]
[329617542,1718511047402,-500.0,0.00021917,2]
[329617543,1718511047417,-500.0,0.00021917,2]
[329617544,1718511047444,-539.77,0.00021917,2]
[329617545,1718511047468,-500.0,0.00021917,2]
[329617546,1718511047485,-1182.16,0.00021917,2]
[329617547,1718511047499,-500.0,0.00021917,2]
[329617548,1718511047529,-500.0,0.00021917,2]
[329617549,1718511047557,-537.06,0.00021917,2]
[329617550,1718511047572,-1213.95,0.00021917,2]
[329617551,1718511047583,-908.69,0.00021917,2]
[329617552,1718511047600,-1011.06,0.00021917,2]
[329617553,1718511047620,-500.0,0.00021917,2]
[329617554,1718511047635,-4073.04,0.00021917,2]
[329617555,1718511047667,-500.0,0.00021917,2]
[329617556,1718511047691,-1803.4,0.00021917,2]
[329617557,1718511047712,-500.0,0.00021917,2]
[329617558,1718511047725,-500.0,0.00021917,2]
[329617559,1718511047749,-1417.64,0.00021917,2]
[329617560,1718511047782,-513.82404766,0.00021917,2]
[329617561,1718511047794,-500.0,0.00021917,2]
[329617562,1718511047807,-500.0,0.00021917,2]
[329617563,1718511047827,-1151.47,0.00021917,2]
[329617564,1718511047850,-500.0,0.00021917,2]
[329617565,1718511047879,-500.0,0.00021917,2]
[329617566,1718511047893,-500.0,0.00021917,2]
[329617567,1718511047909,-1311.92,0.00021917,2]
[329617568,1718511047924,-500.0,0.00021917,2]
[329617569,1718511047957,-500.0,0.00021917,2]
[329617570,1718511047991,-500.0,0.00021917,2]
[329617571,1718511048004,-500.0,0.00021917,2]
[329617572,1718511048045,-500.0,0.00021917,2]
[329617573,1718511048059,-500.0,0.00021917,2]
[329617574,1718511048093,-1012.66,0.00021917,2]
[329617575,1718511048106,-500.0,0.00021917,2]
[329617576,1718511048121,-500.0,0.00021917,2]
[329617577,1718511048132,-1584.3,0.00021917,2]
[329617578,1718511048144,-1284.75,0.00021917,2]
[329617579,1718511048155,-500.0,0.00021917,2]
[329617580,1718511048176,-500.0,0.00021917,7]
[329617581,1718511048187,-707.03,0.00021917,2]
[329617582,1718511048198,-500.0,0.00021917,2]
[329617583,1718511048209,-500.0,0.00021917,2]
[329617584,1718511048220,-10152.68,0.00021917,2]
[329617585,1718511048231,-500.0,0.00021917,2]
[329617586,1718511048250,-1794.3,0.00021917,2]
[329617587,1718511048264,-537.68,0.00021917,2]
[329617588,1718511048287,-2723.81,0.00021917,2]
[329617589,1718511048299,-500.0,0.00021917,2]
[329617590,1718511048316,-500.0,0.00021917,2]
[329617591,1718511048331,-500.0,0.00021917,2]
[329617592,1718511048377,-500.0,0.00021917,2]
[329617593,1718511048392,-590.01,0.00021917,2]
[329617594,1718511048404,-500.0,0.00021917,2]
[329617595,1718511048418,-500.0,0.00021917,2]
[329617596,1718511048459,-500.0,0.00021917,2]
[329617597,1718511048475,-500.0,0.00021917,2]
[329617598,1718511048494,-1879.72988605,0.00021917,2]
[329617602,1718511049011,-4315.5879196,0.00021917,2]
[329617603,1718511049074,-8701.16983801,0.00021917,2]
[329617604,1718511049098,-363.76455997,0.00021917,2]
[329617605,1718511049145,-2456.09841182,0.00021917,2]
[329617606,1718511049158,-3815.40938455,0.00021917,2]
[329617607,1718511049185,-1671.45,0.00021917,2]
[329617608,1718511049213,-500.0,0.00021917,2]
[329617609,1718511049232,-500.0,0.00021917,2]
[329617610,1718511049265,-2977.15,0.00021917,2]
[329617611,1718511049277,-509.65,0.00021917,2]
[329617612,1718511049289,-500.0,0.00021917,2]
[329617613,1718511049303,-500.0,0.00021917,2]
[329617614,1718511049315,-735.43,0.00021917,2]
[329617615,1718511049343,-500.0,0.00021917,2]
[329617616,1718511049356,-1036.47,0.00021917,2]
[329617617,1718511049373,-521.85,0.00021917,2]
[329617618,1718511049385,-500.0,0.00021917,2]
[329617619,1718511049396,-500.0,0.00021917,2]
[329617620,1718511049444,-571.25754982,0.00021917,2]
[329617621,1718511049465,-500.0,0.00021917,2]
[329617622,1718511049478,-521.50468602,0.00021917,2]
[329617623,1718511049498,-500.0,0.00021917,2]
[329617624,1718511049556,-500.0,0.00021917,2]
[329617625,1718511049569,-645.25,0.00021917,2]
[329617626,1718511049585,-5221.36,0.00021917,2]
[329617627,1718511049600,-500.0,0.00021917,2]
[329617628,1718511049612,-1722.34,0.00021917,2]
[329617629,1718511049623,-500.0,0.00021917,2]
[329617630,1718511049636,-1917.22,0.00021917,2]
[329617631,1718511049656,-500.0,0.00021917,2]
[329617632,1718511049679,-965.58,0.00021917,2]
[329617633,1718511049696,-581.18,0.00021917,2]
[329617634,1718511049714,-897.36,0.00021917,2]
[329617635,1718511049732,-934.73,0.00021917,2]
[329617636,1718511049744,-500.0,0.00021917,2]
[329617637,1718511049759,-2552.39,0.00021917,2]
[329617638,1718511049771,-500.0,0.00021917,2]
[329617639,1718511049784,-500.0,0.00021917,2]
[329617640,1718511049804,-0.54050883,0.00021917,2]
[329617641,1718511049853,-541.49949117,0.00021917,2]
[329617642,1718511049869,-1227.6,0.00021917,2]
[329617643,1718511049880,-2229.71,0.00021917,2]
[329617644,1718511049901,-1048.13,0.00021917,2]
[329617645,1718511049938,-580.48039592,0.00021917,2]
[329617646,1718511049950,-603.25,0.00021917,2]
[329617647,1718511049963,-508.25602744,0.00021917,2]
[329617648,1718511050004,-9269.87,0.00021917,2]
[329617649,1718511050014,-500.0,0.00021917,2]
[329617650,1718511050024,-500.0,0.00021917,2]
[329617651,1718511050038,-500.0,0.00021917,2]
[329617652,1718511050060,-655.06,0.00021917,2]
[329617653,1718511050079,-500.0,0.00021917,2]
[329617654,1718511050098,-630.68,0.00021917,2]
[329617655,1718511050136,-500.0,0.00021917,2]
[329617656,1718511050149,-500.0,0.00021917,2]
[329617657,1718511050173,-2913.74,0.00021917,2]
[329617658,1718511050188,-855.76,0.00021917,2]
[329617659,1718511050199,-500.0,0.00021917,2]
[329617660,1718511050538,-500.0,0.00021917,2]
[329617661,1718511050553,-1684.38,0.00021917,2]
[329617662,1718511050578,-2215.08,0.00021917,2]
[329617663,1718511050593,-1965.31,0.00021917,2]
[329617664,1718511050604,-951.18,0.00021917,2]
[329617665,1718511050615,-500.0,0.00021917,2]
[329617666,1718511050627,-500.0,0.00021917,2]
[329617667,1718511050644,-500.0,0.00021917,2]
[329617668,1718511050659,-500.0,0.00021917,2]
[329617669,1718511050676,-500.0,0.00021917,2]
[329617670,1718511050693,-698.25,0.00021917,2]
[329617671,1718511050706,-500.0,0.00021917,2]
[329617672,1718511050720,-1026.71,0.00021917,2]
[329617673,1718511050735,-500.0,0.00021917,2]
[329617674,1718511050751,-1693.67,0.00021917,2]
[329617675,1718511050766,-2475.83,0.00021917,2]
[329617676,1718511050780,-500.0,0.00021917,2]
[329617677,1718511050795,-500.0,0.00021917,2]
[329617678,1718511050813,-3945.14,0.00021917,2]
[329617679,1718511050825,-506.11491102,0.00021917,2]
[329617680,1718511050848,-1192.56,0.00021917,2]
[329617681,1718511050861,-500.0,0.00021917,2]
[329617682,1718511050872,-632.65,0.00021917,2]
[329617683,1718511050895,-500.0,0.00021917,2]
[329617684,1718511050906,-500.0,0.00021917,2]
[329617685,1718511050918,-454.3031695,0.00021917,2]
[329617686,1718511050929,-500.0,0.00021917,2]
[329617687,1718511050945,-500.0,0.00021917,2]
[329617688,1718511050958,-500.0,0.00021917,2]
[329617689,1718511050971,-1675.15,0.00021917,2]
[329617690,1718511050989,-2270.42,0.00021917,2]
[329617691,1718511051009,-501.59852792,0.00021917,2]
[329617692,1718511051035,-500.0,0.00021917,2]
[329617693,1718511051046,-3305.67,0.00021917,2]
[329617694,1718511051064,-5.03817332,0.00021917,2]
[329617695,1718511051158,-674.49182668,0.00021917,2]
[329617696,1718511051169,-1847.57434605,0.00021917,2]
[329617697,1718511051183,-200.19565395,0.00021917,2]
[329617698,1718511051193,-715.65,0.00021917,2]
[329617699,1718511051205,-1852.25,0.00021917,2]
[329617700,1718511051216,-500.0,0.00021917,2]
[329617701,1718511051228,-1315.54,0.00021917,2]
[329617702,1718511051239,-987.16,0.00021917,2]
[329617703,1718511051250,-1594.38,0.00021917,2]
[329617704,1718511051261,-219.74991189,0.00021917,2]
[329617705,1718511051274,-3930.41865035,0.00021917,2]
[329617706,1718511051290,-278.31143776,0.00021917,2]
[329617707,1718511051303,-394.03096224,0.00021917,2]
[329617708,1718511051445,-105.96903776,0.00021917,2]
[329617709,1718511051460,-500.0,0.00021917,2]
[329617710,1718511051475,-665.87,0.00021917,2]
[329617711,1718511051501,-500.0,0.00021917,2]
[329617712,1718511051518,-425.99366608,0.00021917,2]
[329617713,1718511051555,-74.00633392,0.00021917,2]
[329617714,1718511051567,-599.65268836,0.00021917,2]
[329617715,1718511051642,-2748.05976961,0.00021917,2]
[329617716,1718511051660,-447.3187091,0.00021917,2]
[329617717,1718511051698,-580.86539022,0.00021917,2]
[329617718,1718511051718,-301.90641716,0.00021917,2]
[329617719,1718511051780,-500.77266238,0.00021917,2]
[329617720,1718511051798,-3472.60436317,0.00021917,2]
[329617721,1718511051833,-637.36,0.00021917,2]
[329617722,1718511051854,-1018.93,0.00021917,2]
[329617723,1718511051875,-584.96359805,0.00021917,2]
[329617724,1718511051914,-755.18,0.00021917,2]
[329617725,1718511051949,-741.52650025,0.00021917,2]
[329617726,1718511051969,-44.53349975,0.00021917,2]
[329617727,1718511051992,-773.64,0.00021917,2]
[329617728,1718511052005,-394.62650025,0.00021917,2]
[329617729,1718511052052,-105.37349975,0.00021917,2]
[329617730,1718511052064,-3538.22,0.00021917,2]
[329617731,1718511052090,-817.94,0.00021917,2]
[329617732,1718511052108,-500.0,0.00021917,2]
[329617733,1718511052123,-500.0,0.00021917,2]
[329617734,1718511052135,-500.0,0.00021917,2]
[329617735,1718511052154,-500.0,0.00021917,2]
[329617736,1718511052174,-1562.67,0.00021917,2]
[329617737,1718511052188,-500.0,0.00021917,2]
[329617738,1718511052222,-500.0,0.00021917,2]
[329617739,1718511052240,-1197.4,0.00021917,2]
[329617740,1718511052260,-500.0,0.00021917,2]
[329617741,1718511052287,-364.22317923,0.00021917,2]
[329617742,1718511052328,-135.77682077,0.00021917,2]
[329617743,1718511052351,-265.84317919,0.00021917,2]
[329617744,1718511052402,-234.15682081,0.00021917,2]
[329617745,1718511052417,-500.0,0.00021917,2]
[329617746,1718511052431,-500.0,0.00021917,2]
[329617747,1718511052444,-500.0,0.00021917,2]
[329617748,1718511052457,-500.0,0.00021917,2]
[329617749,1718511052469,-500.0,0.00021917,2]
[329617750,1718511052495,-330.44982488,0.00021917,2]
[329617751,1718511052555,-1586.30017512,0.00021917,2]
[329617752,1718511052591,-2301.28,0.00021917,2]
[329617753,1718511052607,-370.10631281,0.00021917,2]
[329617755,1718511054560,-129.89368719,0.00021917,2]
[329617756,1718511054592,-1084.29,0.00021917,2]
[329617757,1718511054605,-759.65868544,0.00021917,2]
[329617758,1718511054629,-438.29,0.00021917,2]
[329617759,1718511054673,-160.59131456,0.00021917,2]
[329617760,1718511054704,-3699.43,0.00021917,2]
[329617761,1718511054717,-500.0,0.00021917,2]
[329617762,1718511054730,-500.0,0.00021917,2]
[329617763,1718511054758,-500.0,0.00021917,2]
[329617764,1718511054779,-500.0,0.00021917,2]
[329617765,1718511054836,-500.0,0.00021917,2]
[329617766,1718511054865,-500.0,0.00021917,2]
[329617767,1718511054880,-500.0,0.00021917,2]
[329617768,1718511054893,-500.0,0.00021917,2]
[329617769,1718511054905,-806.66,0.00021917,2]
[329617770,1718511054928,-1388.04,0.00021917,2]
[329617771,1718511054957,-500.0,0.00021917,2]
[329617772,1718511054969,-1273.07768294,0.00021917,2]
[329617773,1718511054985,-288.85231706,0.00021917,2]
[329617774,1718511055003,-1588.3,0.00021917,2]
[329617775,1718511055015,-746.26323294,0.00021917,2]
[329617776,1718511055048,-1041.50676706,0.00021917,2]
[329617777,1718511055062,-500.0,0.00021917,2]
[329617778,1718511055077,-1630.09,0.00021917,2]
[329617779,1718511055090,-500.0,0.00021917,2]
[329617780,1718511055120,-500.0,0.00021917,2]
[329617781,1718511055133,-500.0,0.00021917,2]
[329617782,1718511055148,-696.38,0.00021917,2]
[329617783,1718511055177,-500.0,0.00021917,2]
[329617784,1718511055209,-500.0,0.00021917,2]
[329617785,1718511055224,-1795.35,0.00021917,2]
[329617786,1718511055248,-774.66,0.00021917,2]
[329617787,1718511055266,-500.0,0.00021917,2]
[329617788,1718511055283,-500.0,0.00021917,2]
[329617789,1718511055302,-500.0,0.00021917,2]
[329617790,1718511055330,-2400.95,0.00021917,2]
[329617791,1718511055352,-732.43,0.00021917,2]
[329617792,1718511055371,-826.27,0.00021917,2]
[329617793,1718511055385,-500.0,0.00021917,2]
[329617794,1718511055397,-621.9,0.00021917,2]
[329617795,1718511055431,-1803.6,0.00021917,2]
[329617796,1718511055469,-500.0,0.00021917,2]
[329617797,1718511055501,-1290.6,0.00021917,2]
[329617798,1718511055523,-500.0,0.00021917,2]
[329617799,1718511055552,-500.0,0.00021917,2]
[329617800,1718511055563,-1942.55,0.00021917,2]
[329617801,1718511055592,-549.1,0.00021917,2]
[329617802,1718511055612,-825.35,0.00021917,2]
[329617803,1718511055625,-500.0,0.00021917,2]
[329617804,1718511055655,-500.0,0.00021917,2]
[329617805,1718511055678,-626.89,0.00021917,2]
[329617806,1718511055713,-500.0,0.00021917,2]
[329617807,1718511055743,-500.0,0.00021917,2]
[329617808,1718511055758,-555.02,0.00021917,2]
[329617809,1718511055775,-500.0,0.00021917,2]
[329617810,1718511055801,-334.46640466,0.00021917,2]
[329617811,1718511055864,-716.34359534,0.00021917,2]
[329617812,1718511055893,-1552.34305436,0.00021917,2]
[329617813,1718511055923,-4196.48694564,0.00021917,2]
[329617814,1718511055971,-581.67,0.00021917,2]
[329617815,1718511055992,-500.0,0.00021917,2]
[329617816,1718511056013,-1054.78,0.00021917,2]
[329617817,1718511056028,-751.95,0.00021917,2]
[329617818,1718511056040,-884.28498905,0.00021917,2]
[329617819,1718511056078,-95.63501095,0.00021917,2]
[329617820,1718511056090,-624.42,0.00021917,2]
[329617821,1718511056105,-500.0,0.00021917,2]
[329617822,1718511056118,-512.70965071,0.00021917,2]
[329617823,1718511056135,-500.0,0.00021917,2]
[329617824,1718511056147,-1002.7,0.00021917,2]
[329617825,1718511056171,-150.81064551,0.00021917,2]
[329617826,1718511056197,-349.18935449,0.00021917,2]
[329617827,1718511056224,-83.49231755,0.00021917,2]
[329617828,1718511056237,-577.91768245,0.00021917,2]
[329617829,1718511056251,-661.41,0.00021917,2]
[329617830,1718511056263,-214.91741947,0.00021917,2]
[329617831,1718511056277,-446.49258053,0.00021917,2]
[329617832,1718511056289,-661.41,0.00021917,2]
[329617833,1718511056310,-500.0,0.00021917,2]
[329617834,1718511056337,-607.06,0.00021917,2]
[329617835,1718511056349,-661.41,0.00021917,2]
[329617836,1718511056369,-658.46,0.00021917,2]
[329617837,1718511056421,-1180.26,0.00021917,2]
[329617838,1718511056441,-500.0,0.00021917,2]
[329617839,1718511056452,-522.37,0.00021917,2]
[329617840,1718511056462,-6656.1,0.00021917,2]
[329617841,1718511056476,-708.13,0.00021917,2]
[329617842,1718511056505,-1283.51,0.00021917,2]
[329617843,1718511056519,-619.79,0.00021917,2]
[329617844,1718511056549,-1292.72,0.00021917,2]
[329617845,1718511056571,-500.0,0.00021917,2]
[329617846,1718511056582,-500.0,0.00021917,2]
[329617847,1718511056604,-500.0,0.00021917,2]
[329617848,1718511056614,-500.0,0.00021917,2]
[329617849,1718511056627,-1468.89,0.00021917,2]
[329617850,1718511056642,-500.0,0.00021917,2]
[329617851,1718511056676,-3209.86,0.00021917,2]
[329617852,1718511056687,-1717.85,0.00021917,2]
[329617853,1718511056713,-2174.53,0.00021917,2]
[329617854,1718511056742,-500.0,0.00021917,2]
[329617855,1718511056780,-408.76219804,0.00021917,2]
[329617856,1718511056792,-676.26,0.00021917,2]
[329617857,1718511056802,-500.0,0.00021917,2]
[329617858,1718511056852,-500.0,0.00021917,2]
[329617859,1718511056892,-781.66,0.00021917,2]
[329617860,1718511056904,-500.0,0.00021917,2]
[329617861,1718511056917,-158.02787277,0.00021917,2]
[329617862,1718511056935,-341.97212723,0.00021917,2]
[329617863,1718511056956,-260.93,0.00021918,2]
[329617864,1718511056969,-1074.39,0.00021918,2]
[329617865,1718511056994,-250.0,0.00021918,2]
[329617866,1718511057014,-150.0,0.00021919,2]
[329617867,1718511057027,-150.0,0.0002192,2]
[329617868,1718511057044,-150.0,0.0002192,2]
[329617869,1718511057057,-300.0,0.00021921,2]
[329617870,1718511057077,-150.0,0.00021922,2]
[329617871,1718511057098,-150.0,0.00021925,2]
[329617872,1718511057108,-150.0,0.00021925,2]
[329617873,1718511057137,-150.0,0.00021927,2]
[329617874,1718511057148,-1500.0,0.00021929,2]
[329617875,1718511057160,-150.0,0.00021929,2]
[329617876,1718511057172,-150.0,0.00021931,2]
[329617877,1718511057217,-150.0,0.00021932,2]
[329617878,1718511057237,-1500.0,0.00021936,2]
[329617879,1718511057257,-150.0,0.00021936,2]
[329617880,1718511057286,-150.0,0.00021938,2]
[329617881,1718511057299,-150.0,0.00021939,2]
[329617882,1718511057332,-37.44746975,0.00021942,2]
[329617883,1718511057447,-112.55253025,0.00021942,2]
[329617884,1718511057458,-150.0,0.00021943,2]
[329617885,1718511057469,-150.0,0.00021944,2]
[329617886,1718511057499,-440.53474666,0.00021944,2]
[329617887,1718511057582,-1059.46525334,0.00021944,2]
[329617888,1718511057599,-150.0,0.00021946,2]
[329617889,1718511057611,-150.0,0.00021948,2]
[329617890,1718511057637,-150.0,0.00021948,2]
[329617891,1718511057650,-150.0,0.0002195,2]
[329617892,1718511057679,-150.0,0.00021952,2]
[329617893,1718511057693,-150.0,0.00021955,2]
[329617894,1718511057714,-150.0,0.00021956,2]
[329617895,1718511057729,-150.0,0.00021956,2]
[329617896,1718511057752,-150.0,0.00021957,2]
[329617897,1718511057766,-1110.64875862,0.00021957,2]
[329617898,1718511057786,-1500.0,0.00021958,2]
[329617899,1718511057842,-150.0,0.00021961,2]
[329617900,1718511057859,-150.0,0.00021962,2]
[329617901,1718511057875,-150.0,0.00021963,2]
[329617902,1718511057888,-150.0,0.00021963,2]
[329617903,1718511057903,-150.0,0.00021964,2]
[329617904,1718511057921,-150.0,0.00021967,2]
[329617905,1718511057958,-1342.0003058,0.00021969,3]
[329617906,1718511058000,-150.0,0.0002197,2]
[329617907,1718511058035,-150.0,0.00021971,2]
[329617908,1718511058084,-150.0,0.00021971,2]
[329617909,1718511058099,-150.0,0.00021972,2]
[329617910,1718511058111,-150.0,0.00021973,2]
[329617911,1718511058131,-150.0,0.00021974,2]
[329617912,1718511058165,-150.0,0.00021981,2]
[329617913,1718511058212,-150.0,0.00021981,2]
[329617914,1718511058227,-140.56301224,0.00021986,2]
[329617915,1718511058384,-9.43698776,0.00021986,2]
[329617916,1718511058416,-1500.0,0.00021987,2]
[329617917,1718511058427,-150.0,0.00021988,2]
[329617918,1718511058439,-105.56301224,0.00021988,2]
[329617919,1718511058463,-201.69007614,0.00021988,2]
[329617920,1718511058478,-150.0,0.00021989,2]
[329617921,1718511058514,-150.0,0.00021991,2]
[329617922,1718511058568,-150.0,0.00021993,2]
[329617923,1718511058582,-150.0,0.00021994,2]
[329617924,1718511058596,-300.0,0.00021996,2]
[329617925,1718511058608,-150.0,0.00021999,2]
[329617926,1718511058619,-272.84638584,0.00022,2]
[329617927,1718511058796,-1829.6655901,0.00022,2]
[329617928,1718511058823,-136.29777615,0.00022,2]
[329617929,1718511058834,-176.97222385,0.00022,2]
[329617930,1718511058849,-614.63879329,0.00022,2]
[329617931,1718511058860,-150.0,0.00022,2]
[329617932,1718511058871,-1000.0,0.00022,2]
[329617933,1718511058883,-150.0,0.00022001,2]
[329617934,1718511058912,-150.0,0.00022004,2]
[329617935,1718511058924,-150.0,0.00022004,2]
[329617936,1718511058935,-150.0,0.00022013,2]
[329617937,1718511058960,-150.0,0.00022013,2]
[329617938,1718511058975,-200.0,0.00022014,2]
[329617939,1718511058991,-500.0,0.00022014,2]
[329617940,1718511059024,-200.0,0.00022014,2]
[329617941,1718511059035,-150.0,0.00022014,2]
[329617942,1718511059046,-150.0,0.00022016,2]
[329617943,1718511059058,-150.0,0.00022016,2]
[329617944,1718511059077,-1242.57852879,0.00022018,2]
[329617945,1718511059608,-257.42147121,0.00022018,2]
[329617946,1718511059632,-150.0,0.00022024,2]
[329617947,1718511059649,-304.16013867,0.00022026,2]
[329617948,1718511059660,-150.0,0.00022027,2]
[329617949,1718511059674,-150.0,0.00022029,2]
[329617950,1718511059690,-413.67027934,0.00022029,2]
[329617951,1718511059719,-318.60360543,0.00022029,2]
[329617952,1718511059736,-411.33245672,0.00022029,2]
[329617953,1718511059775,-500.0,0.00021917,2]
[329617954,1718511059797,-356.39365851,0.00022029,2]
[329617955,1718511059820,-301.80165967,0.00022034,2]
[329617956,1718511059840,-150.0,0.00022035,2]
[329617957,1718511059884,-150.0,0.00022043,2]
[329617958,1718511059900,-679.28,0.00022044,2]
[329617959,1718511059916,-150.0,0.00022044,2]
[329617960,1718511059928,-150.0,0.00022045,2]
[329617961,1718511059947,-300.0,0.00022048,2]
[329617962,1718511059964,-150.0,0.00022049,2]
[329617963,1718511059983,-150.0,0.00022055,2]
[329617964,1718511060007,-150.0,0.00022056,2]
[329617965,1718511060018,-150.0,0.00022058,2]
[329617966,1718511060032,-150.0,0.00022058,2]
[329617967,1718511060042,-1500.0,0.00022059,2]
[329617968,1718511060055,-300.0,0.0002206,2]
[329617969,1718511060070,-300.0,0.00022062,2]
[329617970,1718511060090,-150.0,0.00022063,2]
[329617971,1718511060120,-150.0,0.00022065,2]
[329617972,1718511060149,-150.0,0.00022066,2]
[329617973,1718511060161,-150.0,0.00022067,2]
[329617974,1718511060173,-150.82924318,0.00022069,2]
[329617975,1718511060187,-150.0,0.00022069,2]
[329617976,1718511060200,-150.0,0.00022072,2]
[329617977,1718511060246,-150.0,0.00022072,2]
[329617978,1718511060275,-150.0,0.00022077,2]
[329617979,1718511060288,-150.0,0.00022079,2]
[329617980,1718511060300,-150.0,0.00022083,2]
[329617981,1718511060316,-150.0,0.00022085,2]
[329617982,1718511060341,-150.0,0.00022086,2]
[329617983,1718511060355,-150.0,0.00022087,2]
[329617984,1718511060368,-151.12643296,0.00022087,2]
[329617985,1718511060380,-150.0,0.0002209,2]